bitfinex/quotes_ETHUSD_20251117
["timestamp","ask_amount","ask_price","bid_price","bid_amount"]
[1763368165913,7.37785886,3203.5,3203.4,0.001]
[1763368166502,12.20589737,3203.5,3203.4,0.001]
[1763368166701,1.5392448,3203.4,3203.3,0.002]
[1763368167028,10.45689646,3203.4,3203.3,0.002]
[1763368167330,9.33783931,3203.4,3203.3,0.002]
[1763368167930,10.45689646,3203.4,3203.3,0.002]
[1763368168096,9.33783931,3203.4,3203.3,0.002]
[1763368168297,10.45689646,3203.4,3203.3,0.002]
[1763368169137,13.04528533,3203.4,3203.3,0.002]
[1763368170327,13.04521875,3203.4,3203.3,0.002]
[1763368171343,10.43266477,3203.4,3203.3,0.002]
[1763368171551,6.72521875,3203.4,3203.3,0.002]
[1763368172711,6.85039301,3203.4,3203.3,0.002]
[1763368173658,0.96292793,3203.4,3203.3,1.0304]
[1763368173860,0.29138821,3203.4,3203.3,1.0304]
[1763368174165,1.1337408,3203.6,3203.3,0.5494]
[1763368174166,3.99883423,3203.5,3203.3,0.5494]
[1763368174375,0.29138821,3203.4,3203.3,0.0509]
[1763368174527,0.29138821,3203.4,3203.3,0.002]
[1763368174853,0.29138821,3203.4,3203.3,0.5005]
[1763368175056,0.29138821,3203.4,3203.3,0.9815]
[1763368176555,0.29138821,3203.4,3203.3,0.5005]
[1763368177719,0.963428,3203.4,3203.3,0.5005]
[1763368177937,1.54398948,3203.4,3203.3,0.5005]
[1763368179218,2.67773028,3203.4,3203.3,0.5005]
[1763368179747,1.54398948,3203.4,3203.3,0.9815]
[1763368179942,0.963428,3203.4,3203.3,0.9815]
[1763368180146,0.29138821,3203.4,3203.3,0.9815]
[1763368190979,0.001,3203.5,3203.3,0.9815]
[1763368191179,0.001,3203.5,3203.4,0.9795]
[1763368191383,0.29238821,3203.5,3203.4,0.9795]
[1763368191584,0.001,3203.5,3203.4,0.9795]
[1763368192081,0.29238821,3203.5,3203.4,0.9795]
[1763368192301,0.001,3203.5,3203.4,0.9795]
[1763368192785,0.29238821,3203.5,3203.4,0.9795]
[1763368192960,0.001,3203.5,3203.4,0.9795]
[1763368193506,0.29238821,3203.5,3203.4,0.9795]
[1763368193689,0.001,3203.5,3203.4,0.9795]
[1763368194189,0.29238821,3203.5,3203.4,0.9795]
[1763368194388,0.001,3203.5,3203.4,0.9795]
[1763368194761,0.29238821,3203.5,3203.4,0.9795]
[1763368194963,0.001,3203.5,3203.4,0.9795]
[1763368195376,0.29238821,3203.5,3203.4,0.9795]
[1763368195577,0.001,3203.5,3203.4,0.9795]
[1763368196077,0.29238821,3203.5,3203.4,0.9795]
[1763368196395,0.001,3203.5,3203.4,0.9795]
[1763368196766,0.29238821,3203.5,3203.4,0.9795]
[1763368196998,0.001,3203.5,3203.4,0.9795]
[1763368197405,0.29238821,3203.5,3203.4,0.9795]
[1763368197578,0.001,3203.5,3203.4,0.9795]
[1763368198088,0.29238821,3203.5,3203.4,0.9795]
[1763368198284,0.001,3203.5,3203.4,0.9795]
[1763368198688,0.29238821,3203.5,3203.4,0.9795]
[1763368198866,0.29238821,3203.5,3203.4,0.4985]
[1763368200472,0.29238821,3203.5,3203.4,0.9722]
[1763368200682,0.29238821,3203.5,3203.4,0.4985]
[1763368201201,0.29238821,3203.5,3203.4,0.9722]
[1763368201400,0.29238821,3203.5,3203.4,4.71086285]
[1763368201602,0.001,3203.5,3203.4,5.52167691]
[1763368201807,0.001,3203.5,3203.4,1.81423089]
[1763368201968,0.001,3203.5,3203.4,0.9722]
[1763368203069,0.29306817,3203.5,3203.4,0.4985]
[1763368204104,0.293013,3203.5,3203.4,0.4985]
[1763368204403,0.293013,3203.5,3203.4,0.9722]
[1763368204767,0.293013,3203.5,3203.4,0.4985]
[1763368205207,0.780313,3203.5,3203.3,0.002]
[1763368205513,0.292013,3203.4,3203.3,0.002]
[1763368205800,0.292013,3203.4,3203.3,0.4757]
[1763368206007,0.292013,3203.4,3203.3,0.9297]
[1763368206203,0.292013,3203.4,3203.3,0.456]
[1763368207409,0.292013,3203.4,3203.3,0.9297]
[1763368210604,0.001,3203.5,3203.3,0.9609178]
[1763368210915,0.001,3203.5,3203.4,0.9277]
[1763368211123,0.29333202,3203.5,3203.4,0.9277]
[1763368211807,0.001,3203.5,3203.4,0.95891683]
[1763368212217,0.001,3203.5,3203.4,1.42575312]
[1763368212417,0.001,3203.5,3203.4,1.39453629]
[1763368213398,0.001,3203.5,3203.4,0.9277]
[1763368218400,0.001,3203.5,3203.4,0.95891683]
[1763368219112,0.001,3203.5,3203.4,0.9277]
[1763368220248,0.001,3203.5,3203.4,0.454]
[1763368220654,0.4794,3203.5,3203.3,0.002]
[1763368220965,0.001,3203.5,3203.3,0.002]
[1763368221173,0.4784,3203.4,3203.3,0.002]
[1763368221451,4.47766882,3203.4,3203.3,0.002]
[1763368221753,6.13422524,3203.4,3203.3,0.002]
[1763368222118,2.42677922,3203.4,3203.3,0.002]
[1763368222450,1.75445968,3203.4,3203.3,0.002]
[1763368222748,2.4266696,3203.4,3203.3,0.002]
[1763368224114,1.75445968,3203.4,3203.3,0.002]
[1763368224730,2.42669847,3203.4,3203.3,0.002]
[1763368225019,1.75445968,3203.4,3203.3,0.002]
[1763368225433,1.2571228,3203.4,3203.3,0.002]
[1763368226223,4.96456882,3203.4,3203.3,0.002]
[1763368226817,1.2571228,3203.4,3203.3,0.002]
[1763368227254,1.92909482,3203.4,3203.3,0.002]
[1763368227968,3.17498792,3203.4,3203.3,0.002]
[1763368229233,2.33459882,3203.4,3203.3,0.002]
[1763368232263,1.92909482,3203.4,3203.3,0.002]
[1763368233731,1.44219482,3203.4,3203.3,0.002]
[1763368233947,0.2918228,3203.4,3203.3,0.002]
[1763368234236,0.4697,3203.4,3203.3,0.002]
[1763368234436,0.7615228,3203.4,3203.3,0.002]
[1763368234952,0.7615228,3203.4,3203.3,0.4645]
[1763368234953,0.2918228,3203.4,3203.3,0.4645]
[1763368235153,0.001,3203.5,3203.3,0.9494]
[1763368235369,0.001,3203.9,3203.7,3.47501423]
[1763368235594,0.001,3203.9,3203.8,1.29490142]
[1763368235944,0.001,3203.9,3203.8,0.9474]
[1763368244094,0.001,3203.9,3203.8,0.780919]
[1763368246272,0.001,3203.9,3203.8,0.296019]
[1763368246817,0.001,3203.9,3203.3,0.002]
[1763368246818,0.4707,3203.9,3203.3,0.002]
[1763368247003,0.6517,3203.9,3203.3,0.002]
[1763368247701,0.4707,3203.9,3203.3,0.002]
[1763368248192,0.001,3203.9,3203.3,0.4869]
[1763368248711,0.001,3203.9,3203.4,0.03121683]
[1763368248919,0.001,3203.9,3203.8,0.4625]
[1763368249087,0.001,3203.9,3203.3,0.002]
[1763368250707,0.001,3203.9,3203.8,0.4625]
[1763368251997,0.4938,3203.9,3203.3,0.002]
[1763368252202,0.4938,3203.9,3203.1,0.418721]
[1763368252377,0.001,3203.9,3203.1,0.418721]
[1763368254413,0.001,3203.9,3203.8,0.4713]
[1763368256205,0.4938,3203.9,3203.4,0.4937]
[1763368259295,0.001,3203.9,3203.4,0.4937]
[1763368260384,0.4928,3203.5,3203.0,0.001]
[1763368260829,0.9465,3203.5,3203.0,0.001]
[1763368262117,0.4928,3203.5,3203.0,0.001]
[1763368262424,0.1952,3203.9,3203.0,0.001]
[1763368262425,0.2674,3203.1,3203.0,0.001]
[1763368262920,0.7211,3203.1,3203.0,0.001]
[1763368263123,1.01309607,3203.1,3203.0,0.001]
[1763368265310,0.2674,3203.1,3203.0,0.001]
[1763368265516,0.29188385,3203.3,3203.0,0.4723]
[1763368265723,0.29188385,3203.4,3203.0,0.4723]
[1763368266037,0.4928,3203.1,3203.0,0.001]
[1763368266441,0.67215408,3203.8,3203.0,0.4723]
[1763368266617,0.74542661,3203.7,3203.0,0.4723]
[1763368266816,0.4928,3203.1,3203.0,0.001]
[1763368267906,0.9465,3203.1,3203.0,0.001]
[1763368268320,0.4928,3203.1,3203.0,0.001]
[1763368269234,0.4537,3203.4,3203.0,0.001]
[1763368269829,0.4537,3203.6,3203.0,0.03222073]
[1763368270031,0.29157681,3203.5,3203.0,0.001]
[1763368270229,0.29157681,3203.7,3203.0,0.03222073]
[1763368270629,0.29157681,3203.7,3203.0,0.4947]
[1763368270831,0.94047681,3203.9,3203.0,0.4947]
[1763368271145,0.94047681,3203.9,3203.0,0.001]
[1763368271146,0.29157681,3203.8,3203.0,0.001]
[1763368271342,0.74527681,3203.8,3203.0,0.001]
[1763368271549,0.29157681,3203.7,3203.0,0.001]
[1763368271838,0.74527681,3203.7,3203.0,0.001]
[1763368272021,0.29157681,3203.6,3203.0,0.001]
[1763368272222,0.74527681,3203.6,3203.0,0.001]
[1763368272417,0.4537,3203.6,3203.0,0.001]
[1763368273059,0.29163786,3203.5,3203.0,0.001]
[1763368273427,0.4928,3203.1,3203.0,0.001]
[1763368273631,0.78444941,3203.1,3203.0,0.001]
[1763368274168,1.23814941,3203.1,3203.0,0.001]
[1763368277817,1.24014941,3203.1,3203.0,0.001]
[1763368280126,0.78644941,3203.1,3203.0,0.001]
[1763368280458,0.4948,3203.1,3203.0,0.001]
[1763368282179,0.002,3203.1,3203.0,0.4564]
[1763368282530,0.002,3203.1,3203.0,0.95032073]
[1763368282930,0.002,3203.1,3203.0,0.9191]
[1763368283179,0.481,3203.1,3203.0,0.001]
[1763368283471,0.9759,3203.1,3203.0,0.001]
[1763368284153,1.26778912,3203.1,3203.0,0.001]
[1763368285683,1.26778912,3203.1,3202.7,0.001]
[1763368285684,0.645704,3203.0,3202.7,0.001]
[1763368285878,1.065504,3202.8,3202.7,0.001]
[1763368286082,3.16379688,3202.8,3202.7,0.001]
[1763368286375,3.65869688,3202.8,3202.7,0.001]
[1763368287164,4.77961671,3202.8,3202.7,0.001]
[1763368287429,0.405504,3202.7,3202.6,0.002]
[1763368287756,3.76632672,3202.7,3202.6,0.002]
[1763368288692,2.63258592,3202.7,3202.6,0.002]
[1763368289466,3.47220149,3202.7,3202.6,0.002]
[1763368289670,2.63258592,3202.7,3202.6,0.002]
[1763368290245,3.75350575,3202.7,3202.6,0.002]
[1763368291278,3.34800175,3202.7,3202.6,0.002]
[1763368291576,2.22708192,3202.7,3202.6,0.002]
[1763368294382,3.52637549,3202.7,3202.6,0.002]
[1763368294583,3.06529765,3202.7,3202.6,0.002]
[1763368294765,4.68926336,3202.7,3202.6,0.002]
[1763368295004,4.19903845,3202.7,3202.6,0.002]
[1763368296692,10.08632672,3202.7,3202.6,0.002]
[1763368296850,11.20462277,3202.7,3202.6,0.002]
[1763368297045,1.1337408,3202.6,3202.5,0.001]
[1763368297249,0.884504,3202.5,3202.2,0.001]
[1763368297490,6.09005955,3202.3,3202.2,0.001]
[1763368297659,7.05198785,3202.3,3202.2,0.001]
[1763368297861,7.54688785,3202.3,3202.2,0.001]
[1763368298061,8.03723453,3202.3,3202.2,0.001]
[1763368298266,8.54656437,3202.3,3202.2,0.001]
[1763368299181,8.54656437,3202.3,3200.1,0.005]
[1763368299517,8.54656437,3202.3,3197.7,3.9613]
[1763368299518,0.2924,3198.2,3197.5,0.16323871]
[1763368299815,0.83458968,3197.9,3197.5,0.4627]
[1763368300022,0.67003918,3198.0,3197.5,0.4627]
[1763368300384,0.83458968,3198.8,3197.9,0.4554]
[1763368300711,0.66579697,3198.9,3198.1,0.4554]
[1763368300916,0.1834,3199.2,3198.1,0.4554]
[1763368300917,1.50038665,3199.0,3198.1,0.4554]
[1763368301124,1.50038665,3199.0,3198.2,0.1813]
[1763368301125,0.83458968,3199.0,3198.2,0.1813]
[1763368301329,0.66579697,3199.0,3198.2,0.1813]
[1763368301528,0.66579697,3198.9,3198.2,0.1813]
[1763368302319,0.83458968,3199.0,3198.2,0.1813]
[1763368302489,1.50038665,3198.9,3198.2,0.1813]
[1763368302690,0.66579697,3198.8,3198.2,0.1813]
[1763368302891,1.50038665,3199.1,3198.7,0.4554]
[1763368303131,0.66579697,3199.0,3198.7,0.4554]
[1763368303290,0.66579697,3199.2,3198.7,0.4554]
[1763368303495,0.83458968,3199.4,3198.7,0.4554]
[1763368303699,1.50038665,3199.4,3198.7,0.4554]
[1763368303923,1.98917802,3199.4,3198.7,0.4554]
[1763368304593,1.50038665,3199.3,3198.7,0.4554]
[1763368304793,1.50038665,3199.3,3198.2,0.1813]
[1763368304794,2.63412745,3199.2,3198.2,0.1813]
[1763368305010,1.50038665,3199.1,3198.2,0.1813]
[1763368305240,1.1337408,3198.8,3197.7,0.4627]
[1763368305548,0.1834,3198.7,3197.7,0.4627]
[1763368306051,0.84919697,3198.7,3197.7,0.4627]
[1763368307252,0.66579697,3198.7,3197.7,0.4627]
[1763368307424,0.66579697,3198.9,3198.6,0.6367]
[1763368307740,0.83458968,3199.1,3198.8,0.4554]
[1763368307940,0.83458968,3199.2,3198.6,0.1813]
[1763368308108,0.26341275,3199.1,3198.6,0.1813]
[1763368308431,1.7637994,3199.1,3198.6,0.1813]
[1763368308633,1.09800243,3199.1,3198.6,0.1813]
[1763368308823,1.50038665,3199.2,3199.0,0.4554]
[1763368309026,0.66579697,3199.1,3199.0,0.4627]
[1763368309343,0.66579697,3199.4,3199.0,0.4627]
[1763368309513,0.66579697,3199.5,3199.0,0.9181]
[1763368309904,0.66579697,3199.5,3199.1,0.4627]
[1763368310462,0.83458968,3199.6,3199.4,0.4554]
[1763368310664,0.66204499,3199.7,3199.5,0.4554]
[1763368310955,0.005,3199.9,3199.6,0.9181]
[1763368311105,0.005,3199.9,3199.8,0.4554]
[1763368311638,0.005,3199.9,3199.8,0.911]
[1763368314779,0.005,3199.9,3199.8,0.912]
[1763368318546,0.005,3199.9,3199.8,0.4564]
[1763368318746,0.4566,3199.9,3199.8,0.001]
[1763368318995,0.005,3199.9,3199.8,0.001]
[1763368319497,1.12093616,3199.9,3199.8,0.001]
[1763368319699,0.86488874,3199.9,3199.8,0.001]
[1763368321758,0.66933616,3199.9,3199.8,0.4892]
[1763368321961,0.005,3199.9,3199.8,0.9448]
[1763368324615,0.005,3199.9,3199.8,0.4892]
[1763368324763,0.005,3199.9,3199.8,0.9448]
[1763368324764,0.67047896,3199.9,3199.8,0.9448]
[1763368324965,0.005,3199.9,3199.8,0.9448]
[1763368325186,0.6704707,3199.9,3199.8,0.9448]
[1763368328162,0.6704707,3199.9,3199.8,0.4892]
[1763368329967,0.6704707,3199.9,3199.8,0.001]
[1763368330664,1.1220707,3199.9,3199.8,0.001]
[1763368330864,2.81552642,3199.9,3199.8,0.001]
[1763368331066,1.98093674,3199.9,3199.8,0.001]
[1763368331668,2.26992645,3199.9,3199.8,0.001]
[1763368332079,3.93910581,3199.9,3199.8,0.001]
[1763368332901,5.07284661,3199.9,3199.8,0.001]
[1763368333098,3.40566725,3199.9,3199.4,0.001]
[1763368333410,1.1107517,3199.5,3199.4,0.001]
[1763368333610,2.39861211,3199.5,3199.4,0.001]
[1763368333963,2.87741211,3199.5,3199.4,0.001]
[1763368334769,1.76666041,3199.5,3199.4,0.001]
[1763368334972,2.1097735,3199.5,3199.4,0.001]
[1763368335294,3.77590106,3199.5,3199.4,0.001]
[1763368336094,3.2435143,3199.5,3199.4,0.001]
[1763368337135,2.1097735,3199.5,3198.2,0.4556]
[1763368337341,0.83398102,3198.8,3198.2,0.4556]
[1763368337540,0.6654707,3198.7,3198.2,0.4556]
[1763368337740,0.6654707,3198.6,3198.2,0.4556]
[1763368337924,0.6654707,3198.5,3198.2,0.4556]
[1763368338234,0.83398102,3198.9,3198.2,0.4556]
[1763368338398,0.66794238,3198.8,3198.4,0.4578]
[1763368338600,0.66794238,3198.7,3198.4,0.4578]
[1763368338799,0.66794238,3198.6,3198.4,0.9432]
[1763368339033,0.66794238,3198.5,3198.4,0.4854]
[1763368339336,0.4636,3199.4,3198.0,0.0988]
[1763368339337,0.83398102,3199.0,3198.8,0.4578]
[1763368339533,0.83398102,3199.0,3198.1,0.405504]
[1763368339534,0.66792329,3198.9,3198.1,0.405504]
[1763368339721,0.83398102,3199.0,3198.2,1.63126288]
[1763368339722,0.66792329,3198.8,3198.2,1.63126288]
[1763368339899,0.66792329,3198.7,3198.2,1.63126288]
[1763368340104,0.66792329,3198.6,3198.3,0.4854]
[1763368340303,0.83398102,3199.0,3198.9,0.4578]
[1763368340538,1.79208259,3199.0,3198.9,0.4578]
[1763368340733,1.79208259,3199.0,3198.9,0.9432]
[1763368341235,0.66811635,3199.0,3198.9,0.9432]
[1763368342302,0.83398102,3199.4,3198.9,0.9432]
[1763368342527,0.66836915,3199.3,3199.0,0.4836]
[1763368342835,0.66836915,3199.2,3199.0,0.4836]
[1763368343038,0.66836915,3199.1,3199.0,0.4836]
[1763368343200,0.66836915,3199.1,3199.0,1.1422]
[1763368343406,0.66836915,3199.4,3199.0,1.1422]
[1763368343714,0.66836915,3199.3,3199.1,0.4836]
[1763368343913,0.66836915,3199.2,3199.1,0.4836]
[1763368344439,0.66836915,3199.5,3199.1,0.9609]
[1763368344613,0.66836915,3199.4,3199.1,0.9609]
[1763368344803,0.83398102,3199.8,3199.1,0.4836]
[1763368345005,1.22006385,3199.7,3199.3,0.4773]
[1763368345342,0.95833167,3199.6,3199.3,0.4773]
[1763368345506,0.66828094,3199.5,3199.3,0.9609]
[1763368345706,0.66828094,3199.4,3199.3,0.4836]
[1763368346014,0.66828094,3199.7,3199.3,0.4836]
[1763368346213,0.66828094,3199.6,3199.3,0.9609]
[1763368346418,0.66828094,3199.5,3199.3,0.9609]
[1763368346619,0.66828094,3199.8,3199.3,0.9609]
[1763368346810,0.9584043,3199.7,3199.3,0.4773]
[1763368347005,0.66828094,3199.6,3199.3,0.4773]
[1763368347210,0.66828094,3199.7,3199.0,0.1813]
[1763368347401,0.66828094,3199.8,3199.0,0.1813]
[1763368347607,0.66828094,3199.7,3199.0,0.1813]
[1763368347913,0.66828094,3199.8,3199.0,0.1813]
[1763368348319,1.41758828,3199.7,3198.1,1.1337408]
[1763368348531,0.95859043,3199.6,3198.2,0.46721709]
[1763368348705,0.66828094,3199.8,3198.3,0.405504]
[1763368348910,0.95860408,3199.7,3199.5,0.4773]
[1763368349106,0.66828094,3199.6,3199.5,0.4773]
[1763368349426,0.66828094,3199.8,3199.5,0.4773]
[1763368349826,0.007,3199.9,3199.5,0.4773]
[1763368350304,0.9656532,3199.9,3199.5,0.4773]
[1763368350511,0.007,3199.9,3199.5,0.4773]
[1763368350813,0.007,3199.9,3199.5,0.9609]
[1763368351130,0.96567485,3199.9,3199.8,0.4773]
[1763368351327,0.007,3199.9,3199.8,0.4773]
[1763368351783,0.007,3199.9,3199.4,0.1189]
[1763368351983,0.4718,3199.9,3199.4,0.1189]
[1763368352282,0.007,3199.9,3199.8,0.4773]
[1763368353392,0.007,3199.9,3199.8,0.9609]
[1763368353983,0.007,3199.9,3199.8,0.4773]
[1763368354153,0.4718,3199.9,3199.4,0.1189]
[1763368354352,0.007,3199.9,3199.8,0.4773]
[1763368354771,0.007,3199.9,3199.8,0.9609]
[1763368355385,0.007,3199.9,3199.8,0.4773]
[1763368357276,0.007,3199.9,3199.8,0.9609]
[1763368358988,0.007,3199.9,3199.8,0.4773]
[1763368360688,0.007,3199.9,3199.8,0.9609]
[1763368360884,0.007,3199.9,3199.8,0.4773]
[1763368361089,0.007,3199.9,3199.8,0.9609]
[1763368364450,0.007,3199.9,3199.8,0.4773]
[1763368364646,0.007,3199.9,3199.4,0.6025]
[1763368365488,0.4648,3199.5,3199.0,0.1189]
[1763368365874,0.9238,3199.5,3199.0,0.1189]
[1763368366589,0.459,3199.4,3198.7,0.1189]
[1763368367765,0.1906,3199.9,3198.7,0.6025]
[1763368367965,0.459,3199.6,3198.7,0.6025]
[1763368370069,0.1906,3199.9,3198.7,0.6025]
[1763368370284,0.459,3199.6,3198.7,0.3547886]
[1763368370486,0.459,3199.6,3198.7,0.1189]
[1763368370889,0.29116867,3199.5,3198.7,0.1189]
[1763368371113,0.459,3199.4,3198.7,0.1189]
[1763368372219,1.02458102,3199.9,3199.3,0.4522]
[1763368372530,0.29124376,3199.8,3198.9,0.405504]
[1763368372730,0.29124376,3199.7,3198.8,0.877104]
[1763368372879,0.29124376,3199.6,3198.8,0.4716]
[1763368373081,0.78694376,3199.7,3198.8,0.4716]
[1763368373287,0.29128545,3199.6,3198.8,0.4716]
[1763368373491,0.4609,3198.9,3198.6,0.001]
[1763368374019,0.4609,3198.7,3198.6,0.001]
[1763368374492,0.9566,3198.7,3198.6,0.001]
[1763368374683,1.91885425,3198.7,3198.6,0.001]
[1763368375202,1.91875254,3198.7,3198.6,0.001]
[1763368375400,2.21307424,3198.7,3198.6,0.001]
[1763368376211,1.54214269,3198.7,3198.6,0.001]
[1763368376394,1.24782099,3198.7,3198.6,0.001]
[1763368377087,1.91804722,3198.7,3198.6,0.001]
[1763368377418,1.24782099,3198.7,3198.6,0.001]
[1763368378185,0.4609,3198.7,3198.6,0.001]
[1763368378605,1.24723397,3198.7,3198.6,0.001]
[1763368378803,2.12711034,3198.7,3198.6,0.001]
[1763368380287,3.26085114,3198.7,3198.6,0.001]
[1763368380483,2.12711034,3198.7,3198.6,0.001]
[1763368381542,1.5392448,3198.6,3198.3,0.001]
[1763368381818,2.73915654,3198.4,3198.3,0.001]
[1763368382018,2.1601575,3198.4,3198.3,0.001]
[1763368382182,2.6558575,3198.4,3198.3,0.001]
[1763368382514,1.82084576,3198.4,3198.3,0.001]
[1763368382915,1.15123397,3198.4,3198.3,0.001]
[1763368383786,0.3649,3198.4,3198.3,0.001]
[1763368383986,0.1858,3198.9,3198.3,0.4532]
[1763368383987,0.4957,3198.8,3198.3,0.4532]
[1763368384215,0.4609,3198.4,3198.3,0.001]
[1763368384592,1.24614438,3198.4,3198.3,0.001]
[1763368385515,0.9566,3198.4,3198.3,0.001]
[1763368386115,0.4609,3198.4,3198.3,0.001]
[1763368386528,0.9566,3198.4,3198.3,0.001]
[1763368386917,1.94201858,3198.4,3198.3,0.001]
[1763368387534,3.07575938,3198.4,3198.3,0.001]
[1763368387907,4.14754511,3198.4,3198.3,0.001]
[1763368388119,4.98255685,3198.4,3198.3,0.001]
[1763368388430,4.14754511,3198.4,3198.3,0.001]
[1763368388613,5.47343689,3198.4,3198.3,0.001]
[1763368389416,4.63842515,3198.4,3198.3,0.001]
[1763368391805,0.405504,3198.2,3197.1,0.005]
[1763368392010,0.5507,3197.2,3197.1,0.005]
[1763368392419,1.0464,3197.2,3197.1,0.005]
[1763368394303,0.5507,3197.2,3197.1,0.005]
[1763368394723,0.66628173,3197.5,3197.1,0.005]
[1763368394724,0.1858,3197.5,3197.1,0.005]
[1763368394904,0.97096413,3197.5,3197.1,0.005]
[1763368395109,0.6815,3197.5,3197.1,0.005]
[1763368395355,0.4609,3197.2,3197.1,0.005]
[1763368396042,0.6815,3197.5,3197.1,0.005]
[1763368396238,0.28948807,3197.4,3197.1,0.005]
[1763368396430,0.78518807,3197.4,3197.1,0.005]
[1763368396632,0.4957,3197.4,3197.1,0.005]
[1763368397030,0.4609,3197.2,3197.1,0.005]
[1763368397430,0.9431,3197.2,3197.1,0.005]
[1763368397630,0.16101451,3197.2,3197.1,0.005]
[1763368397852,0.9631,3197.2,3197.1,0.005]
[1763368398354,0.66718149,3197.4,3197.1,0.005]
[1763368398553,0.1858,3197.5,3197.1,0.4637]
[1763368398554,0.28966161,3197.3,3197.1,0.4637]
[1763368398754,0.47546161,3197.5,3197.1,0.4637]
[1763368398947,0.95766161,3197.5,3197.1,0.005]
[1763368399143,0.28966161,3197.4,3197.1,0.005]
[1763368399352,0.4809,3197.2,3197.1,0.005]
[1763368399870,0.16302815,3197.2,3197.1,0.005]
[1763368400156,0.4809,3197.2,3197.1,0.005]
[1763368400348,0.77054492,3197.2,3197.1,0.005]
[1763368402156,1.24604492,3197.2,3197.1,0.005]
[1763368402348,1.91337295,3197.2,3197.1,0.005]
[1763368403358,0.95697295,3197.2,3197.1,0.477]
[1763368403849,1.43747295,3197.2,3197.1,0.005]
[1763368404226,0.95697295,3197.2,3197.1,0.477]
[1763368404733,0.95697295,3197.2,3197.1,0.005]
[1763368404938,0.95697295,3197.2,3197.1,0.477]
[1763368406328,1.78959375,3197.2,3197.1,0.477]
[1763368407171,2.27009375,3197.2,3197.1,0.005]
[1763368407338,2.60843846,3197.2,3197.1,0.005]
[1763368407878,3.08393846,3197.2,3197.1,0.005]
[1763368408224,2.25131766,3197.2,3197.1,0.005]
[1763368408863,3.36467105,3197.2,3197.1,0.005]
[1763368409026,2.88917105,3197.2,3197.1,0.005]
[1763368409667,2.41228043,3197.2,3197.1,0.477]
[1763368409827,2.55443572,3197.2,3197.1,0.005]
[1763368410252,2.55592618,3197.2,3197.1,0.005]
[1763368412066,3.03142618,3197.2,3197.1,0.005]
[1763368413168,1.4849408,3197.1,3196.1,0.005]
[1763368413369,0.83866238,3196.5,3196.1,0.005]
[1763368413558,0.96207279,3196.4,3196.1,0.005]
[1763368413755,0.96207279,3196.3,3196.1,0.4642]
[1763368413964,0.96207279,3196.2,3196.1,0.005]
[1763368414332,0.96207279,3196.2,3196.1,0.9362]
[1763368414531,0.96207279,3196.2,3196.1,0.477]
[1763368415065,0.96207279,3196.2,3196.1,0.9362]
[1763368415274,0.96207279,3196.2,3196.1,0.005]
[1763368415564,1.51437256,3196.2,3196.1,0.005]
[1763368415776,0.96207279,3196.2,3196.1,0.5959]
[1763368416071,0.96259376,3196.2,3196.1,1.0551]
[1763368416434,0.96259376,3196.2,3196.1,0.5959]
[1763368418776,0.96259376,3196.2,3196.1,1.0551]
[1763368419667,0.96259376,3196.2,3196.1,0.5959]
[1763368420775,0.96259376,3196.2,3196.1,0.005]
[1763368420964,0.96259376,3196.2,3196.1,0.5959]
[1763368423548,1.62324877,3196.2,3196.1,0.005]
[1763368423846,2.46220515,3196.2,3196.1,0.005]
[1763368425182,1.14274877,3196.2,3196.1,0.005]
[1763368425480,1.62324877,3196.2,3196.1,0.005]
[1763368425863,1.14274877,3196.2,3196.1,0.005]
[1763368426860,1.62324877,3196.2,3196.1,0.005]
[1763368427488,1.14274877,3196.2,3196.1,0.005]
[1763368427696,2.09874877,3196.2,3196.1,0.005]
[1763368429469,3.23248957,3196.2,3196.1,0.005]
[1763368429970,4.35070608,3196.2,3196.1,0.005]
[1763368430290,3.23248957,3196.2,3196.1,0.005]
[1763368431260,1.62324877,3196.2,3196.1,0.005]
[1763368431453,4.0531527,3196.2,3196.1,0.005]
[1763368431793,2.75698957,3196.2,3196.1,0.005]
[1763368433268,2.09608901,3196.2,3196.1,0.4691]
[1763368433470,0.96234821,3196.2,3196.1,0.588]
[1763368433806,0.29112826,3196.2,3196.1,0.588]
[1763368434009,0.29112826,3196.2,3196.1,0.4691]
[1763368435900,0.76222826,3196.2,3196.1,0.005]
[1763368436408,0.76222826,3196.2,3196.1,0.4691]
[1763368436409,0.29112826,3196.2,3196.1,0.4691]
[1763368436898,0.76222826,3196.2,3196.1,0.005]
[1763368437067,1.54386916,3196.2,3196.1,0.005]
[1763368437266,2.21508911,3196.2,3196.1,0.005]
[1763368440196,3.34882991,3196.2,3196.1,0.005]
[1763368440413,3.72226255,3195.2,3195.1,0.005]
[1763368440691,5.52790153,3195.2,3195.1,0.005]
[1763368440933,0.96231272,3195.2,3195.1,0.6057]
[1763368441077,0.2913187,3195.2,3195.1,1.0918]
[1763368441277,0.2913187,3195.2,3195.1,0.6057]
[1763368441885,0.2913187,3195.4,3195.1,1.0918]
[1763368442092,0.83914666,3195.8,3195.1,1.0918]
[1763368442093,0.2913187,3195.3,3195.1,0.1416]
[1763368442291,0.2913187,3195.2,3195.1,0.1416]
[1763368442519,0.4711,3195.2,3195.1,0.005]
[1763368442791,1.89121272,3195.2,3195.1,0.005]
[1763368442987,1.70644866,3195.2,3195.1,0.005]
[1763368443222,2.16424866,3195.2,3195.1,0.005]
[1763368443425,1.70644866,3195.2,3195.1,0.005]
[1763368443587,1.70619084,3195.2,3195.1,0.005]